fUST/lending_fUST_20250724
["ID","MTS","AMOUNT","RATE_DAILY","PERIOD"]
[374578593,1753361459098,-789.29,0.00022465,2]
[374578594,1753361459107,-460.0,0.00022465,2]
[374578595,1753361459117,-842.97,0.00022465,2]
[374578596,1753361459127,-460.0,0.00022465,2]
[374578597,1753361459147,-1729.15,0.00022465,2]
[374578598,1753361459157,-460.0,0.00022465,2]
[374578599,1753361459166,-515.47,0.00022465,2]
[374578600,1753361459176,-460.0,0.00022465,2]
[374578601,1753361459186,-460.0,0.00022465,2]
[374578602,1753361459196,-462.73,0.00022465,2]
[374578603,1753361459206,-460.0,0.00022465,2]
[374578604,1753361459216,-460.0,0.00022465,2]
[374578605,1753361459226,-460.0,0.00022465,2]
[374578606,1753361459236,-534.52,0.00022465,2]
[374578607,1753361459246,-460.0,0.00022465,2]
[374578608,1753361459256,-460.0,0.00022465,2]
[374578609,1753361459266,-474.63,0.00022465,2]
[374578610,1753361459276,-494.14,0.00022465,2]
[374578611,1753361459286,-4098.54,0.00022465,2]
[374578612,1753361459295,-613.8,0.00022465,2]
[374578613,1753361459305,-710.33,0.00022465,2]
[374578614,1753361459315,-1354.19,0.00022465,2]
[374578615,1753361459325,-460.0,0.00022465,2]
[374578616,1753361459334,-460.0,0.00022465,2]
[374578617,1753361459344,-557.79,0.00022465,2]
[374578618,1753361459354,-460.0,0.00022465,2]
[374578619,1753361459364,-460.0,0.00022465,2]
[374578620,1753361459374,-608.79,0.00022465,2]
[374578621,1753361459386,-460.0,0.00022465,2]
[374578622,1753361459396,-716.07,0.00022465,2]
[374578623,1753361459405,-2936.37,0.00022465,2]
[374578624,1753361459415,-1289.01,0.00022465,2]
[374578625,1753361459424,-1655.9,0.00022465,2]
[374578626,1753361459434,-460.0,0.00022465,2]
[374578627,1753361459446,-468.85943743,0.00022465,2]
[374578628,1753361459456,-460.0,0.00022465,2]
[374578629,1753361459465,-849.86,0.00022465,2]
[374578630,1753361459474,-460.0,0.00022465,2]
[374578631,1753361459484,-2616.6,0.00022465,2]
[374578632,1753361459494,-2502.37,0.00022465,2]
[374578633,1753361459503,-1164.14,0.00022465,2]
[374578634,1753361459513,-460.0,0.00022465,2]
[374578635,1753361459524,-1050.05,0.00022465,2]
[374578636,1753361459534,-460.0,0.00022465,2]
[374578637,1753361459544,-477.38760462,0.00022465,2]
[374578638,1753361459554,-166.67,0.000225,2]
[374578639,1753361459563,-227.2,0.00022588,5]
[374578640,1753361459572,-167.666661,0.00022603,2]
[374578641,1753361459582,-1674.18014597,0.00022624,7]
[374578642,1753361459592,-240.0,0.00022633,2]
[374578643,1753361459601,-265.88456767,0.00022682,2]
[374578644,1753361459611,-737.21,0.00022739,2]
[374578645,1753361459620,-460.0,0.00022739,2]
[374578646,1753361459630,-460.0,0.00022739,2]
[374578647,1753361459643,-460.0,0.00022739,2]
[374578648,1753361459652,-460.0,0.00022739,2]
[374578649,1753361459661,-460.0,0.00022739,2]
[374578650,1753361459671,-460.0,0.00022739,2]
[374578651,1753361459680,-460.0,0.00022739,2]
[374578652,1753361459690,-460.0,0.00022739,2]
[374578653,1753361459699,-460.0,0.00022739,2]
[374578654,1753361459710,-460.0,0.00022739,2]
[374578655,1753361459720,-460.0,0.00022739,2]
[374578656,1753361459729,-176.10048466,0.00022739,2]
[374578657,1753361459739,-460.0,0.00022739,2]
[374578658,1753361459749,-1581.12,0.00022739,2]
[374578659,1753361459758,-1484.39,0.00022739,2]
[374578660,1753361459768,-460.0,0.00022739,2]
[374578661,1753361459778,-738.04,0.00022739,2]
[374578662,1753361459788,-460.0,0.00022739,2]
[374578663,1753361459797,-460.0,0.00022739,2]
[374578664,1753361459807,-460.0,0.00022739,2]
[374578665,1753361459816,-789.29,0.00022739,2]
[374578666,1753361459825,-460.0,0.00022739,2]
[374578667,1753361459835,-842.97,0.00022739,2]
[374578668,1753361459845,-460.0,0.00022739,2]
[374578669,1753361459855,-1729.15,0.00022739,2]
[374578670,1753361459864,-460.0,0.00022739,2]
[374578671,1753361459874,-515.47,0.00022739,2]
[374578672,1753361459886,-354.41743296,0.00022739,2]
[374578673,1753361459896,-460.0,0.00022739,2]
[374578674,1753361459905,-462.73,0.00022739,2]
[374578675,1753361459915,-460.0,0.00022739,2]
[374578676,1753361459924,-460.0,0.00022739,2]
[374578677,1753361459934,-460.0,0.00022739,2]
[374578678,1753361459943,-534.52,0.00022739,2]
[374578679,1753361459953,-460.0,0.00022739,2]
[374578680,1753361459963,-460.0,0.00022739,2]
[374578681,1753361459973,-474.63,0.00022739,2]
[374578682,1753361459982,-494.14,0.00022739,2]
[374578683,1753361459992,-4098.54,0.00022739,2]
[374578684,1753361460002,-613.8,0.00022739,2]
[374578685,1753361460011,-710.33,0.00022739,2]
[374578686,1753361460020,-1354.19,0.00022739,2]
[374578687,1753361460031,-460.0,0.00022739,2]
[374578688,1753361460040,-460.0,0.00022739,2]
[374578689,1753361460051,-557.79,0.00022739,2]
[374578690,1753361460061,-460.0,0.00022739,2]
[374578691,1753361460071,-460.0,0.00022739,2]
[374578692,1753361460081,-608.79,0.00022739,2]
[374578693,1753361460091,-460.0,0.00022739,2]
[374578694,1753361460101,-716.07,0.00022739,2]
[374578695,1753361460111,-2936.37,0.00022739,2]
[374578696,1753361460120,-1289.01,0.00022739,2]
[374578697,1753361460129,-460.0,0.00022739,2]
[374578698,1753361460251,-849.86,0.00022739,2]
[374578699,1753361460263,-460.0,0.00022739,2]
[374578700,1753361460274,-2616.6,0.00022739,2]
[374578701,1753361460284,-2502.37,0.00022739,2]
[374578702,1753361460295,-1164.14,0.00022739,2]
[374578703,1753361460307,-460.0,0.00022739,2]
[374578704,1753361460317,-1050.05,0.00022739,2]
[374578705,1753361460327,-460.0,0.00022739,2]
[374578706,1753361460337,-943.59,0.00022796,6]
[374578707,1753361460347,-1674.18014597,0.00022797,7]
[374578708,1753361460357,-166.67,0.00022871,2]
[374578709,1753361460367,-943.59,0.00022896,3]
[374578710,1753361460376,-227.2,0.00022918,5]
[374578711,1753361460389,-1674.18014597,0.00022969,8]
[374578712,1753361460400,-1000.0,0.00022986,2]
[374578713,1753361460410,-1000.0,0.00022986,2]
[374578714,1753361460420,-1000.0,0.00022986,2]
[374578715,1753361460430,-1000.0,0.00022986,2]
[374578716,1753361460440,-1000.0,0.00022986,2]
[374578717,1753361460453,-1000.0,0.00022986,2]
[374578718,1753361460465,-1000.0,0.00022986,2]
[374578719,1753361460475,-1000.0,0.00022986,2]
[374578720,1753361460488,-1000.0,0.00022986,2]
[374578721,1753361460500,-1000.0,0.00022986,2]
[374578722,1753361460511,-1000.0,0.00022986,2]
[374578723,1753361460525,-1000.0,0.00022986,2]
[374578724,1753361460537,-732.97741673,0.00022986,2]
[374578725,1753361460548,-943.59,0.00022996,7]
[374578726,1753361460558,-1000.0,0.00023,2]
[374578727,1753361460570,-160.0,0.00023,2]
[374578728,1753361460580,-151.0,0.00023013,7]
[374578729,1753361460589,-737.21,0.00023013,2]
[374578730,1753361460600,-460.0,0.00023013,2]
[374578731,1753361460610,-460.0,0.00023013,2]
[374578732,1753361460620,-460.0,0.00023013,2]
[374578733,1753361460630,-581.31204098,0.00023013,2]
[374578734,1753361460645,-460.0,0.00023013,2]
[374578735,1753361460654,-460.0,0.00023013,2]
[374578736,1753361460664,-460.0,0.00023013,2]
[374578737,1753361460673,-460.0,0.00023013,2]
[374578738,1753361460683,-460.0,0.00023013,2]
[374578739,1753361460693,-460.0,0.00023013,2]
[374578740,1753361460703,-460.0,0.00023013,2]
[374578741,1753361460714,-318.31138922,0.00023013,2]
[374578742,1753361460725,-1581.12,0.00023013,2]
[374578743,1753361460734,-1484.39,0.00023013,2]
[374578744,1753361460745,-460.0,0.00023013,2]
[374578745,1753361460755,-738.04,0.00023013,2]
[374578746,1753361460765,-460.0,0.00023013,2]
[374578747,1753361460775,-460.0,0.00023013,2]
[374578748,1753361460785,-376.40490601,0.00023013,2]
[374578749,1753361460794,-789.29,0.00023013,2]
[374578750,1753361460804,-460.0,0.00023013,2]
[374578751,1753361460815,-842.97,0.00023013,2]
[374578752,1753361460824,-460.0,0.00023013,2]
[374578753,1753361460834,-1729.15,0.00023013,2]
[374578754,1753361460844,-460.0,0.00023013,2]
[374578755,1753361460854,-515.47,0.00023013,2]
[374578756,1753361460864,-460.0,0.00023013,2]
[374578757,1753361460874,-462.73,0.00023013,2]
[374578758,1753361460887,-460.0,0.00023013,2]
[374578759,1753361460897,-460.0,0.00023013,2]
[374578760,1753361460907,-460.0,0.00023013,2]
[374578761,1753361460918,-534.52,0.00023013,2]
[374578762,1753361460927,-460.0,0.00023013,2]
[374578763,1753361460938,-460.0,0.00023013,2]
[374578764,1753361460948,-474.63,0.00023013,2]
[374578765,1753361460958,-613.8,0.00023013,2]
[374578766,1753361460969,-4098.54,0.00023013,2]
[374578767,1753361460979,-494.14,0.00023013,2]
[374578768,1753361460989,-710.33,0.00023013,2]
[374578769,1753361460999,-1354.19,0.00023013,2]
[374578770,1753361461009,-460.0,0.00023013,2]
[374578771,1753361461019,-460.0,0.00023013,2]
[374578772,1753361461030,-557.79,0.00023013,2]
[374578773,1753361461040,-460.0,0.00023013,2]
[374578774,1753361461050,-608.79,0.00023013,2]
[374578775,1753361461060,-460.0,0.00023013,2]
[374578776,1753361461070,-716.07,0.00023013,2]
[374578777,1753361461081,-2936.37,0.00023013,2]
[374578778,1753361461091,-1289.01,0.00023013,2]
[374578779,1753361461102,-460.0,0.00023013,2]
[374578780,1753361461111,-849.86,0.00023013,2]
[374578781,1753361461121,-271.76990548,0.00023013,2]
[374578782,1753361461131,-2616.6,0.00023013,2]
[374578783,1753361461142,-2502.37,0.00023013,2]
[374578784,1753361461152,-1164.14,0.00023013,2]
[374578785,1753361461161,-460.0,0.00023013,2]
[374578786,1753361461172,-1050.05,0.00023013,2]
[374578787,1753361461184,-460.0,0.00023013,2]
[374578788,1753361461195,-163.0,0.00023014,7]
[374578789,1753361461206,-150.0,0.00023029,2]
[374578790,1753361461215,-943.59,0.00023096,2]
[374578791,1753361461226,-1674.18014597,0.00023141,8]
[374578792,1753361461235,-223.0315306,0.0002319,2]
[374578793,1753361461244,-500.0,0.00023195,2]
[374578794,1753361461254,-943.59,0.00023196,5]
[374578795,1753361461264,-151.0,0.000232,7]
[374578796,1753361461274,-430.26559,0.000232,7]
[374578797,1753361461284,-151.0,0.000232,7]
[374578798,1753361461294,-151.0,0.000232,7]
[374578799,1753361461304,-151.0,0.000232,7]
[374578800,1753361461314,-430.26559,0.000232,7]
[374578801,1753361461323,-991.2,0.000232,7]
[374578802,1753361461334,-6716.25,0.000232,7]
[374578803,1753361461343,-227.2,0.00023249,6]
[374578804,1753361461353,-500.0,0.00023256,2]
[374578805,1753361461362,-737.21,0.00023287,2]
[374578806,1753361461372,-460.0,0.00023287,2]
[374578807,1753361461381,-460.0,0.00023287,2]
[374578808,1753361461392,-460.0,0.00023287,2]
[374578809,1753361461402,-460.0,0.00023287,2]
[374578810,1753361461411,-460.0,0.00023287,2]
[374578811,1753361461421,-359.82496243,0.00023287,2]
[374578812,1753361461431,-460.0,0.00023287,2]
[374578813,1753361461440,-460.0,0.00023287,2]
[374578814,1753361461454,-460.0,0.00023287,2]
[374578815,1753361461463,-471.93722276,0.00023287,2]
[374578816,1753361461473,-1581.12,0.00023287,2]
[374578817,1753361461482,-1484.39,0.00023287,2]
[374578818,1753361461492,-460.0,0.00023287,2]
[374578819,1753361461502,-738.04,0.00023287,2]
[374578820,1753361461513,-460.0,0.00023287,2]
[374578821,1753361461523,-268.4,0.00023287,2]
[374578822,1753361461533,-789.29,0.00023287,2]
[374578823,1753361461543,-460.0,0.00023287,2]
[374578824,1753361461552,-842.97,0.00023287,2]
[374578825,1753361461562,-460.0,0.00023287,2]
[374578826,1753361461571,-1729.15,0.00023287,2]
[374578827,1753361461581,-460.0,0.00023287,2]
[374578828,1753361461590,-515.47,0.00023287,2]
[374578829,1753361461600,-460.0,0.00023287,2]
[374578830,1753361461609,-462.73,0.00023287,2]
[374578831,1753361461619,-460.0,0.00023287,2]
[374578832,1753361461628,-460.0,0.00023287,2]
[374578833,1753361461640,-460.0,0.00023287,2]
[374578834,1753361461650,-534.52,0.00023287,2]
[374578835,1753361461660,-460.0,0.00023287,2]
[374578836,1753361461670,-460.0,0.00023287,2]
[374578837,1753361461679,-474.63,0.00023287,2]
[374578838,1753361461689,-613.8,0.00023287,2]
[374578839,1753361461699,-4098.54,0.00023287,2]
[374578840,1753361461709,-494.14,0.00023287,2]
[374578841,1753361461719,-710.33,0.00023287,2]
[374578842,1753361461728,-1354.19,0.00023287,2]
[374578843,1753361461738,-460.0,0.00023287,2]
[374578844,1753361461747,-557.79,0.00023287,2]
[374578845,1753361461757,-460.0,0.00023287,2]
[374578846,1753361461767,-608.79,0.00023287,2]
[374578847,1753361461776,-460.0,0.00023287,2]
[374578848,1753361461786,-716.07,0.00023287,2]
[374578849,1753361461796,-2936.37,0.00023287,2]
[374578850,1753361461805,-1289.01,0.00023287,2]
[374578851,1753361461815,-460.0,0.00023287,2]
[374578852,1753361461825,-849.86,0.00023287,2]
[374578853,1753361461835,-2616.6,0.00023287,2]
[374578854,1753361461845,-2502.37,0.00023287,2]
[374578855,1753361461854,-1164.14,0.00023287,2]
[374578856,1753361461865,-209.98085329,0.00023287,2]
[374578857,1753361461875,-1050.05,0.00023287,2]
[374578858,1753361461885,-460.0,0.00023287,2]
[374578859,1753361461895,-943.59,0.00023296,7]
[374578860,1753361461904,-34169.55,0.000233,2]
[374578861,1753361461914,-1123.41,0.000233,7]
[374578862,1753361461924,-166.67,0.00023307,2]
[374578863,1753361461934,-1674.18014597,0.00023314,9]
[374578864,1753361461944,-943.59,0.00023396,3]
[374578865,1753361461953,-151.0,0.00023482,7]
[374578866,1753361461963,-151.0,0.00023482,7]
[374578867,1753361461972,-305.714176,0.00023482,7]
[374578868,1753361461982,-305.714176,0.00023482,7]
[374578869,1753361461991,-1674.18014597,0.00023486,9]
[374578870,1753361462001,-943.59,0.00023496,2]
[374578871,1753361462011,-737.21,0.00023561,2]
[374578872,1753361462020,-460.0,0.00023561,2]
[374578873,1753361462030,-460.0,0.00023561,2]
[374578874,1753361462039,-460.0,0.00023561,2]
[374578875,1753361462048,-525.54,0.00023561,2]
[374578876,1753361462057,-460.0,0.00023561,2]
[374578877,1753361462066,-460.0,0.00023561,2]
[374578878,1753361462076,-460.0,0.00023561,2]
[374578879,1753361462086,-460.0,0.00023561,2]
[374578880,1753361462096,-1581.12,0.00023561,2]
[374578881,1753361462106,-1484.39,0.00023561,2]
[374578882,1753361462115,-460.0,0.00023561,2]
[374578883,1753361462125,-738.04,0.00023561,2]
[374578884,1753361462134,-460.0,0.00023561,2]
[374578885,1753361462144,-789.29,0.00023561,2]
[374578886,1753361462154,-460.0,0.00023561,2]
[374578887,1753361462164,-842.97,0.00023561,2]
[374578888,1753361462174,-460.0,0.00023561,2]
[374578889,1753361462183,-1729.15,0.00023561,2]
[374578890,1753361462193,-460.0,0.00023561,2]
[374578891,1753361462203,-515.47,0.00023561,2]
[374578892,1753361462212,-460.0,0.00023561,2]
[374578893,1753361462222,-462.73,0.00023561,2]
[374578894,1753361462231,-460.0,0.00023561,2]
[374578895,1753361462240,-460.0,0.00023561,2]
[374578896,1753361462250,-236.55727065,0.00023561,2]
[374578897,1753361462259,-534.52,0.00023561,2]
[374578898,1753361462269,-463.66630311,0.00023561,2]
[374578899,1753361462279,-460.0,0.00023561,2]
[374578900,1753361462288,-474.63,0.00023561,2]
[374578901,1753361462298,-613.8,0.00023561,2]
[374578902,1753361462307,-4098.54,0.00023561,2]
[374578903,1753361462317,-494.14,0.00023561,2]
[374578904,1753361462327,-710.33,0.00023561,2]
[374578905,1753361462336,-1354.19,0.00023561,2]
[374578906,1753361462346,-460.0,0.00023561,2]
[374578907,1753361462356,-557.79,0.00023561,2]
[374578908,1753361462366,-460.0,0.00023561,2]
[374578909,1753361462375,-608.79,0.00023561,2]
[374578910,1753361462387,-460.0,0.00023561,2]
[374578911,1753361462397,-716.07,0.00023561,2]
[374578912,1753361462406,-2936.37,0.00023561,2]
[374578913,1753361462416,-1289.01,0.00023561,2]
[374578914,1753361462426,-460.0,0.00023561,2]
[374578915,1753361462435,-849.86,0.00023561,2]
[374578916,1753361462447,-2616.6,0.00023561,2]
[374578917,1753361462457,-2502.37,0.00023561,2]
[374578918,1753361462467,-1164.14,0.00023561,2]
[374578919,1753361462478,-1050.05,0.00023561,2]
[374578920,1753361462490,-577.6552115,0.00023562,2]
[374578921,1753361462501,-178.2667198,0.00023562,2]
[374578922,1753361462512,-178.2667198,0.00023562,2]
[374578923,1753361462525,-178.2667198,0.00023562,2]
[374578924,1753361462536,-159.9507963,0.00023562,2]
[374578925,1753361462546,-577.6552115,0.00023562,2]
[374578926,1753361462556,-577.6552115,0.00023562,2]
[374578927,1753361462565,-178.2667198,0.00023562,2]
[374578928,1753361462576,-159.9507963,0.00023562,2]
[374578929,1753361462586,-178.2667198,0.00023562,2]
[374578930,1753361462596,-159.9507963,0.00023562,2]
[374578931,1753361462696,-577.6552115,0.00023562,2]
[374578932,1753361462718,-577.6552115,0.00023562,2]
[374578933,1753361462728,-319.9015926,0.00023562,2]
[374578934,1753361462738,-159.9507963,0.00023562,2]
[374578935,1753361462747,-576.3410971,0.00023562,2]
[374578936,1753361462758,-279.0505042,0.00023577,2]
[374578937,1753361462769,-227.2,0.00023579,6]
[374578938,1753361462779,-265.88456767,0.00023583,2]
[374578939,1753361462789,-943.59,0.00023596,3]
[374578940,1753361462799,-961.06,0.000236,2]
[374578941,1753361462809,-1674.18014597,0.00023659,9]
[374578942,1753361462819,-943.59,0.00023696,7]
[374578943,1753361462828,-166.67,0.00023742,2]
[374578944,1753361462838,-943.59,0.00023796,7]
[374578945,1753361462848,-1000.0,0.000238,2]
[374578946,1753361462858,-1674.18014597,0.00023831,10]
[374578947,1753361462867,-737.21,0.00023835,2]
[374578948,1753361462877,-460.0,0.00023835,2]
[374578949,1753361462889,-486.14115808,0.00023835,2]
[374578950,1753361462899,-225.85,0.00023835,2]
[374578951,1753361462909,-460.0,0.00023835,2]
[374578952,1753361462918,-460.0,0.00023835,2]
[374578953,1753361462929,-460.0,0.00023835,2]
[374578954,1753361462938,-460.0,0.00023835,2]
[374578955,1753361462948,-1581.12,0.00023835,2]
[374578956,1753361462958,-1484.39,0.00023835,2]
[374578957,1753361462967,-460.0,0.00023835,2]
[374578958,1753361462980,-738.04,0.00023835,2]
[374578959,1753361462990,-460.0,0.00023835,2]
[374578960,1753361463001,-789.29,0.00023835,2]
[374578961,1753361463011,-460.0,0.00023835,2]
[374578962,1753361463020,-842.97,0.00023835,2]
[374578963,1753361463030,-460.0,0.00023835,2]
[374578964,1753361463040,-1729.15,0.00023835,2]
[374578965,1753361463050,-460.0,0.00023835,2]
[374578966,1753361463060,-515.47,0.00023835,2]
[374578967,1753361463070,-525.4,0.00023835,2]
[374578968,1753361463080,-462.73,0.00023835,2]
[374578969,1753361463090,-460.0,0.00023835,2]
[374578970,1753361463099,-460.0,0.00023835,2]
[374578971,1753361463109,-534.52,0.00023835,2]
[374578972,1753361463120,-460.0,0.00023835,2]
[374578973,1753361463130,-474.63,0.00023835,2]
[374578974,1753361463142,-613.8,0.00023835,2]
[374578975,1753361463152,-494.14,0.00023835,2]
[374578976,1753361463162,-710.33,0.00023835,2]
[374578977,1753361463172,-4098.54,0.00023835,2]
[374578978,1753361463182,-1354.19,0.00023835,2]
[374578979,1753361463192,-460.0,0.00023835,2]
[374578980,1753361463202,-557.79,0.00023835,2]
[374578981,1753361463212,-460.0,0.00023835,2]
[374578982,1753361463221,-608.79,0.00023835,2]
[374578983,1753361463231,-460.0,0.00023835,2]
[374578984,1753361463241,-716.07,0.00023835,2]
[374578985,1753361463251,-2936.37,0.00023835,2]
[374578986,1753361463261,-1289.01,0.00023835,2]
[374578987,1753361463271,-222.82,0.00023835,2]
[374578988,1753361463280,-849.86,0.00023835,2]
[374578989,1753361463290,-2616.6,0.00023835,2]
[374578990,1753361463301,-2502.37,0.00023835,2]
[374578991,1753361463311,-1164.14,0.00023835,2]
[374578992,1753361463322,-1050.05,0.00023835,2]
[374578993,1753361463331,-319.9015926,0.00023836,2]
[374578994,1753361463341,-159.9507963,0.00023836,2]
[374578995,1753361463351,-943.59,0.00023896,7]
[374578996,1753361463360,-227.2,0.00023909,6]
[374578997,1753361463370,-943.59,0.00023996,7]
[374578998,1753361463380,-840.23756827,0.00024,3]
[374578999,1753361463392,-840.23756827,0.00024,7]
[374579000,1753361463402,-1000.0,0.00024,2]
[374579001,1753361463412,-160.0,0.00024,7]
[374579002,1753361463422,-526.24749348,0.00024,7]
[374579003,1753361463432,-1674.18014597,0.00024003,10]
[374579004,1753361463441,-596.0,0.00024037,2]
[374579005,1753361463455,-500.0,0.0002409,2]
[374579006,1753361463464,-943.59,0.00024096,3]
[374579007,1753361463474,-151.0,0.00024109,7]
[374579008,1753361463485,-430.26559,0.00024109,7]
[374579009,1753361463495,-151.0,0.00024109,7]
[374579010,1753361463504,-151.0,0.00024109,7]
[374579011,1753361463514,-151.0,0.00024109,7]
[374579012,1753361463524,-430.26559,0.00024109,7]
[374579013,1753361463535,-737.21,0.00024109,2]
[374579014,1753361463545,-460.0,0.00024109,2]
[374579015,1753361463554,-536.7,0.00024109,2]
[374579016,1753361463564,-460.0,0.00024109,2]
[374579017,1753361463575,-460.0,0.00024109,2]
[374579018,1753361463585,-460.0,0.00024109,2]
[374579019,1753361463595,-1581.12,0.00024109,2]
[374579020,1753361463604,-1484.39,0.00024109,2]
[374579021,1753361463614,-460.0,0.00024109,2]
[374579022,1753361463625,-738.04,0.00024109,2]
[374579023,1753361463636,-460.0,0.00024109,2]
[374579024,1753361463646,-789.29,0.00024109,2]
[374579025,1753361463656,-460.0,0.00024109,2]
[374579026,1753361463666,-842.97,0.00024109,2]
[374579027,1753361463676,-460.0,0.00024109,2]
[374579028,1753361463688,-1729.15,0.00024109,2]
[374579029,1753361463698,-517.53,0.00024109,2]
[374579030,1753361463708,-515.47,0.00024109,2]
[374579031,1753361463719,-462.73,0.00024109,2]
[374579032,1753361463728,-460.0,0.00024109,2]
[374579033,1753361463738,-460.0,0.00024109,2]
[374579034,1753361463748,-534.52,0.00024109,2]
[374579035,1753361463758,-460.0,0.00024109,2]
[374579036,1753361463768,-474.63,0.00024109,2]
[374579037,1753361463778,-613.8,0.00024109,2]
[374579038,1753361463788,-494.14,0.00024109,2]
[374579039,1753361463798,-710.33,0.00024109,2]
[374579040,1753361463808,-4098.54,0.00024109,2]
[374579041,1753361463818,-1354.19,0.00024109,2]
[374579042,1753361463828,-460.0,0.00024109,2]
[374579043,1753361463838,-557.79,0.00024109,2]
[374579044,1753361463848,-460.0,0.00024109,2]
[374579045,1753361463858,-608.79,0.00024109,2]
[374579046,1753361463868,-460.0,0.00024109,2]
[374579047,1753361463877,-716.07,0.00024109,2]
[374579048,1753361463889,-2936.37,0.00024109,2]
[374579049,1753361463899,-1289.01,0.00024109,2]
[374579050,1753361463909,-849.86,0.00024109,2]
[374579051,1753361463919,-2616.6,0.00024109,2]
[374579052,1753361463929,-2502.37,0.00024109,2]
[374579053,1753361463940,-1164.14,0.00024109,2]
[374579054,1753361463950,-1050.05,0.00024109,2]
[374579055,1753361463961,-308.2057358,0.0002411,2]
[374579056,1753361463971,-153.0,0.0002411,2]
[374579057,1753361463981,-153.0,0.0002411,2]
[374579058,1753361463990,-500.0,0.00024118,2]
[374579059,1753361464000,-596.0,0.00024144,2]
[374579060,1753361464010,-500.0,0.00024173,2]
[374579061,1753361464019,-1674.18014597,0.00024176,10]
[374579062,1753361464030,-166.67,0.00024178,2]
[374579063,1753361464039,-943.59,0.00024196,5]
[374579064,1753361464049,-5888.0,0.00024207,2]
[374579065,1753361464059,-227.2,0.00024239,6]
[374579066,1753361464068,-500.0,0.00024276,2]
[374579067,1753361464079,-500.0,0.0002429,2]
[374579068,1753361464088,-4185.23,0.0002429,10]
[374579069,1753361464098,-3982.11,0.0002429,10]
[374579070,1753361464108,-3318.43,0.0002429,10]
[374579071,1753361464117,-943.59,0.00024296,7]
[374579072,1753361464127,-151.0,0.000243,7]
[374579073,1753361464137,-991.2,0.000243,7]
[374579074,1753361464147,-151.0,0.000243,7]
[374579075,1753361464156,-151.0,0.000243,7]
[374579076,1753361464166,-151.0,0.000243,7]
[374579077,1753361464175,-1000.0,0.000243,2]
[374579078,1753361464185,-6716.25,0.000243,7]
[374579079,1753361464195,-526.24749348,0.000243,10]
[374579080,1753361464205,-526.24749348,0.000243,7]
[374579081,1753361464215,-648.0,0.00024306,2]
[374579082,1753361464225,-2157.0,0.00024306,2]
[374579083,1753361464235,-407.0,0.00024306,2]
[374579084,1753361464245,-421.197,0.00024306,2]
[374579085,1753361464254,-969.0,0.00024306,2]
[374579086,1753361464264,-206.0,0.0002431,2]
[374579087,1753361464273,-1674.18014597,0.00024348,11]
[374579088,1753361464283,-500.0,0.00024363,2]
[374579089,1753361464292,-596.0,0.00024369,2]
[374579090,1753361464302,-151.0,0.00024383,7]
[374579091,1753361464312,-151.0,0.00024383,7]
[374579092,1753361464321,-305.714176,0.00024383,7]